[Event "Vojvodina Open 2024-A 2024"]
[Site "Novi Sad"]
[Date "2024.06.26"]
[Round "3.14"]
[White "Sahbudak, Baris Cinar"]
[Black "Popchev, Milko"]
[Result "0-1"]
[ECO "B23"]
[WhiteElo "1941"]
[BlackElo "2159"]
[Annotator "RC"]
[PlyCount "172"]
[EventDate "2024.06.03"]
[EventType "swiss"]
[EventCountry "SRB"]
[SourceTitle "playchess.com"]
[Source "ChessBase"]
[SourceQuality "1"]
[TimeControl "40/5400+30:900+30"]

1. e4 {[%emt 0:02:32]} c5 {[%emt 0:12:14]} 2. Nc3 {[%emt 0:01:28]} Nc6 {[%emt 0:00:42]} 3. f4 {[%emt 0:01:00]} e6 {[%emt 0:01:11]} 4. Nf3 {[%emt 0:01:00]} d5 {[%emt 0:00:08]} 5. exd5 {[%emt 0:00:30]} exd5 {[%emt 0:00:08]} 6. Bb5 {[%emt 0:00:29]} Nge7 {[%emt 0:00:14]} 7. Qe2 {[%emt 0:02:26]} Qd6 {[%emt 0:00:23]} 8. Ne5 {[%emt 0:12:17]} g6 {[%emt 0:01:21]} 9. Bxc6+ {[%emt 0:03:37]} bxc6 {[%emt 0:00:20]} 10. d3 {[%emt 0:01:01]} Bg7 {[%emt 0:00:23]} 11. O-O {[%emt 0:01:53]} O-O {[%emt 0:00:28]} 12. Na4 {[%emt 0:12:12]} Nf5 {[%emt 0:01:59]} 13. Qf2 {[%emt 0:08:21]} c4 {[%emt 0:06:50]} 14. d4 {[%emt 0:06:01]} f6 {[%emt 0:02:40]} 15. Nf3 {[%emt 0:01:34]} Re8 {[%emt 0:00:33]} 16. b3 {[%emt 0:04:03]} Bf8 {[%emt 0:01:32]} 17. g4 {[%emt 0:10:44]} Ng7 {[%emt 0:02:42]} 18. h3 {[%emt 0:04:50]} h5 {[%emt 0:01:54]} 19. Nh4 {[%emt 0:05:08]} f5 {[%emt 0:04:25]} 20. gxh5 {[%emt 0:04:43]} Nxh5 {[%emt 0:00:08]} 21. Qg2 {[%emt 0:02:00]} Bg7 {[%emt 0:01:19]} 22. c3 {[%emt 0:02:34]} cxb3 {[%emt 0:00:50]} 23. axb3 {[%emt 0:02:53]} Ba6 {[%emt 0:00:10]} 24. Rf2 {[%emt 0:01:16]} Bd3 {[%emt 0:02:53]} 25. Nc5 {[%emt 0:01:21]} Be4 {[%emt 0:00:45]} 26. Qxg6 {[%emt 0:01:14]} Qxg6+ {[%emt 0:00:56]} 27. Nxg6 {[%emt 0:00:01]} Kh7 {[%emt 0:00:21]} 28. Ne5 {[%emt 0:01:34]} Bh6 {[%emt 0:00:20]} 29. Nf7 {[%emt 0:03:50]} a5 {[%emt 0:02:25]} 30. Ng5+ {[%emt 0:01:19]} Kg6 {[%emt 0:00:24]} 31. Ngxe4 {[%emt 0:00:54]} dxe4 {[%emt 0:00:25]} 32. Be3 {[%emt 0:00:06]} Kf7 {[%emt 0:01:13]} 33. Kh2 {[%emt 0:01:03]} Rg8 {[%emt 0:00:17]} 34. Nd7 {[%emt 0:01:01]} Rg3 {[%emt 0:00:26]} 35. Ne5+ {[%emt 0:00:11]} Ke6 {[%emt 0:01:16]} 36. Nc4 {[%emt 0:00:33]} Rxe3 {[%emt 0:01:21]} 37. Nxe3 {[%emt 0:00:13]} Bxf4+ {[%emt 0:00:02]} 38. Rxf4 {[%emt 0:00:21]} Nxf4 {[%emt 0:00:02]} 39. Rf1 {[%emt 0:00:42]} Nd5 {[%emt 0:00:07]} 40. Nxf5 {[%emt 0:00:00]} Nxc3 {[%emt 0:00:00]} 41. Rc1 {[%emt 0:11:19]} Kxf5 {[%emt 0:04:07]} 42. Rxc3 {[%emt 0:00:01]} Kf4 {[%emt 0:00:51]} 43. Kg2 {[%emt 0:01:43]} Rd8 {[%emt 0:00:54]} 44. Rxc6 {[%emt 0:04:15]} Rxd4 {[%emt 0:00:03]} 45. Kf2 {[%emt 0:01:13]} Rd2+ {[%emt 0:00:23]} 46. Ke1 {[%emt 0:00:22]} Rb2 {[%emt 0:00:50]} 47. Rc3 {[%emt 0:00:28]} Rh2 {[%emt 0:00:53]} 48. Kf1 {[%emt 0:00:42]} e3 {[%emt 0:01:04]} 49. Rc8 {[%emt 0:00:30]} Rxh3 {[%emt 0:00:30]} 50. Ke2 {[%emt 0:00:28]} Rh2+ {[%emt 0:00:12]} 51. Ke1 {[%emt 0:00:32]} Kf3 {[%emt 0:00:22]} 52. Rf8+ {[%emt 0:00:03]} Ke4 {[%emt 0:00:11]} 53. Re8+ {[%emt 0:00:32]} Kd3 {[%emt 0:00:21]} 54. Rd8+ {[%emt 0:00:01]} Kc3 {[%emt 0:00:28]} 55. Rb8 {[%emt 0:01:10]} Ra2 {[%emt 0:02:59]} 56. Rb7 {[%emt 0:00:30]} Ra3 {[%emt 0:00:59]} 57. Rb5 {[%emt 0:00:15]} Ra2 {[%emt 0:00:25]} 58. Rb7 {[%emt 0:00:13]} Rg2 {[%emt 0:00:55]} 59. Rb5 {[%emt 0:00:51]} Ra2 {[%emt 0:01:25]} 60. Rb7 {[%emt 0:00:07]} Kd4 {[%emt 0:00:20]} 61. Rd7+ {[%emt 0:01:13]} Kc5 {[%emt 0:00:46]} 62. Rb7 {[%emt 0:00:28]} Rb2 {[%emt 0:01:03]} 63. Rb8 {[%emt 0:00:30]} Kc6 {[%emt 0:00:23]} 64. Ra8 {[%emt 0:00:33]} Kb6 {[%emt 0:00:48]} 65. Rb8+ {[%emt 0:00:10]} Kc5 {[%emt 0:01:41]} 66. Kd1 {[%emt 0:00:51]} Rh2 {[%emt 0:00:49]} 67. Ke1 {[%emt 0:00:31]} Rh5 {[%emt 0:00:56]} 68. Ke2 {[%emt 0:00:19]} Re5 {[%emt 0:00:09]} 69. Rc8+ {[%emt 0:00:43]} Kb4 {[%emt 0:00:25]} 70. Rb8+ {[%emt 0:00:18]} Kc3 {[%emt 0:01:20]} 71. Rb7 {[%emt 0:00:15]} Kc2 {[%emt 0:00:32]} 72. Rb8 {[%emt 0:00:36]} Rd5 {[%emt 0:00:18]} 73. Kxe3 {[%emt 0:00:28]} Rd3+ {[%emt 0:00:05]} 74. Ke2 {[%emt 0:00:21]} Rxb3 {[%emt 0:00:05]} 75. Ra8 {[%emt 0:00:34]} Rb5 {[%emt 0:00:08]} 76. Rc8+ {[%emt 0:00:15]} Kb2 {[%emt 0:00:35]} 77. Kd3 {[%emt 0:00:52]} Rb3+ {[%emt 0:00:58]} 78. Kd2 {[%emt 0:00:19]} a4 {[%emt 0:00:30]} 79. Rc2+ {[%emt 0:00:21]} Kb1 {[%emt 0:00:30]} 80. Rc1+ {[%emt 0:00:16]} Ka2 {[%emt 0:00:10]} 81. Rc2+ {[%emt 0:00:40]} Rb2 {[%emt 0:00:04]} 82. Kc3 {[%emt 0:00:24]} a3 {[%emt 0:00:03]} 83. Rc1 {[%emt 0:00:09]} Rb1 {[%emt 0:00:09]} 84. Rc2+ {[%emt 0:00:13]} Ka1 {[%emt 0:00:03]} 85. Rh2 {[%emt 0:01:25]} Rb2 {[%emt 0:00:38]} 86. Rc2 {[%emt 0:00:26]} Kb1 {[%emt 0:00:17]} 0-1

[Event "Vojvodina Open 2024-A 2024"]
[Site "Novi Sad"]
[Date "2024.06.26"]
[Round "3.15"]
[White "Mijic, Sara"]
[Black "Prieb, Robert"]
[Result "1/2-1/2"]
[ECO "B92"]
[WhiteElo "1920"]
[BlackElo "2137"]
[Annotator "RC"]
[PlyCount "57"]
[EventDate "2024.06.03"]
[EventType "swiss"]
[EventCountry "SRB"]
[SourceTitle "playchess.com"]
[Source "ChessBase"]
[SourceQuality "1"]
[TimeControl "40/5400+30:900+30"]

1. e4 {[%emt 0:00:05]} c5 {[%emt 0:00:09]} 2. Nf3 {[%emt 0:00:42]} d6 {[%emt 0:00:10]} 3. d4 {[%emt 0:00:26]} cxd4 {[%emt 0:00:14]} 4. Nxd4 {[%emt 0:00:07]} Nf6 {[%emt 0:00:14]} 5. Nc3 {[%emt 0:00:07]} a6 {[%emt 0:00:14]} 6. Be3 {[%emt 0:00:34]} e5 {[%emt 0:00:18]} 7. Nb3 {[%emt 0:00:06]} Be6 {[%emt 0:00:15]} 8. Be2 {[%emt 0:00:29]} Be7 {[%emt 0:01:03]} 9. f3 {[%emt 0:00:13]} O-O {[%emt 0:02:02]} 10. O-O {[%emt 0:00:19]} Nbd7 {[%emt 0:02:43]} 11. Qd2 {[%emt 0:00:50]} b5 {[%emt 0:03:16]} 12. Rfc1 {[%emt 0:22:23]} Rc8 {[%emt 0:06:16]} 13. Kh1 {[%emt 0:12:51]} h6 {[%emt 0:06:08]} 14. Nd5 {[%emt 0:00:48]} Bxd5 {[%emt 0:02:43]} 15. exd5 {[%emt 0:00:04]} Nb6 {[%emt 0:00:40]} 16. Bxb6 {[%emt 0:01:05]} Qxb6 {[%emt 0:00:08]} 17. c4 {[%emt 0:09:16]} bxc4 {[%emt 0:01:45]} 18. Bxc4 {[%emt 0:00:14]} Nd7 {[%emt 0:05:09]} 19. Qa5 {[%emt 0:07:02]} Bg5 {[%emt 0:01:29]} 20. Rc2 {[%emt 0:02:39]} Rc7 {[%emt 0:04:54]} 21. Qe1 {[%emt 0:05:56]} Nf6 {[%emt 0:14:44]} 22. Rd1 {[%emt 0:06:08]} Rfc8 {[%emt 0:02:52]} 23. Na5 {[%emt 0:02:09]} e4 {[%emt 0:01:06]} 24. Nc6 {[%emt 0:06:08]} exf3 {[%emt 0:06:44]} 25. gxf3 {[%emt 0:04:11]} Nh5 {[%emt 0:02:59]} 26. Qf2 {[%emt 0:01:38]} Be3 {[%emt 0:04:31]} 27. Qh4 {[%emt 0:00:38]} Nf6 {[%emt 0:00:22]} 28. Rg2 {[%emt 0:01:44]} Bg5 {[%emt 0:02:43]} 29. Qf2 {[%emt 0:16:08]} 1/2-1/2

[Event "Vojvodina Open 2024-A 2024"]
[Site "Novi Sad"]
[Date "2024.06.26"]
[Round "3.16"]
[White "Anakok, Deniz"]
[Black "Pasa, Ahmet"]
[Result "1/2-1/2"]
[ECO "C54"]
[WhiteElo "1819"]
[BlackElo "2056"]
[Annotator "RC"]
[PlyCount "53"]
[EventDate "2024.06.03"]
[EventType "swiss"]
[EventCountry "SRB"]
[SourceTitle "playchess.com"]
[Source "ChessBase"]
[SourceQuality "1"]
[TimeControl "40/5400+30:900+30"]

1. e4 {[%emt 0:00:02]} e5 {[%emt 0:00:08]} 2. Nf3 {[%emt 0:00:07]} Nc6 {[%emt 0:00:07]} 3. Bc4 {[%emt 0:00:26]} Bc5 {[%emt 0:00:19]} 4. d3 {[%emt 0:00:37]} Nf6 {[%emt 0:00:39]} 5. O-O {[%emt 0:00:36]} O-O {[%emt 0:01:04]} 6. c3 {[%emt 0:00:27]} d5 {[%emt 0:01:10]} 7. exd5 {[%emt 0:03:43]} Nxd5 {[%emt 0:00:36]} 8. b4 {[%emt 0:04:07]} Be7 {[%emt 0:01:17]} 9. Re1 {[%emt 0:08:51]} Bg4 {[%emt 0:04:04]} 10. h3 {[%emt 0:13:05]} Bh5 {[%emt 0:21:36]} 11. b5 {[%emt 0:30:36]} Na5 {[%emt 0:02:23]} 12. Rxe5 {[%emt 0:01:11]} Nxc4 {[%emt 0:27:47]} 13. dxc4 {[%emt 0:00:35]} Bxf3 {[%emt 0:07:39]} 14. Qxf3 {[%emt 0:02:54]} Nb6 {[%emt 0:00:29]} 15. c5 {[%emt 0:05:21]} Nd7 {[%emt 0:09:02]} 16. Rd5 {[%emt 0:00:25]} Bxc5 {[%emt 0:10:41]} 17. Qg4 {[%emt 0:07:57]} f5 {[%emt 0:04:54]} 18. Qd1 {[%emt 0:06:13]} Bd6 {[%emt 0:03:45]} 19. Ba3 {[%emt 0:00:44]} Nb6 {[%emt 0:00:39]} 20. Bxd6 {[%emt 0:02:04]} Nxd5 {[%emt 0:01:35]} 21. Bxf8 {[%emt 0:00:24]} Kxf8 {[%emt 0:00:10]} 22. Qf3 {[%emt 0:00:43]} Nf6 {[%emt 0:00:53]} 23. Na3 {[%emt 0:01:47]} Qd5 {[%emt 0:00:24]} 24. Qe3 {[%emt 0:03:27]} a6 {[%emt 0:00:33]} 25. c4 {[%emt 0:00:19]} Qd6 {[%emt 0:00:21]} 26. bxa6 {[%emt 0:01:21]} bxa6 {[%emt 0:00:09]} 27. Qf3 {[%emt 0:02:18]} 1/2-1/2